fUSD/lending_fUSD_20251228
["ID","MTS","AMOUNT","RATE_DAILY","PERIOD"]
[399969431,1766955048152,-171.6502218,0.000169,2]
[399969432,1766955048161,-157.28739986,0.000169,2]
[399969433,1766955048171,-150.0,0.00016904,2]
[399969434,1766955048179,-150.0,0.00016905,2]
[399969435,1766955048189,-1607.9,0.00016907,2]
[399969436,1766955048198,-150.0,0.00016912,2]
[399969437,1766955048207,-150.0,0.00016912,2]
[399969438,1766955048218,-166.66,0.00016926,2]
[399969439,1766955048230,-150.0,0.00016932,2]
[399969440,1766955048240,-150.0,0.00016933,2]
[399969441,1766955048302,-150.0,0.00016935,2]
[399969442,1766955048312,-150.0,0.00016938,2]
[399969443,1766955048322,-23392.5784664,0.00016946,2]
[399969444,1766955048332,-270610.1002117,0.00016946,2]
[399969445,1766955048342,-151.0,0.00016946,2]
[399969446,1766955048353,-8083.9620396,0.00016946,2]
[399969447,1766955048362,-193.237428,0.00016948,2]
[399969448,1766955048372,-150.0,0.00016949,2]
[399969449,1766955048382,-1607.9,0.00016953,2]
[399969450,1766955048392,-150.0,0.00016959,2]
[399969451,1766955048402,-500.0,0.00016969,2]
[399969452,1766955048411,-500.0,0.00016969,2]
[399969453,1766955048421,-200.0,0.0001697,2]
[399969454,1766955048431,-200.0,0.0001697,2]
[399969455,1766955048440,-271.94730123,0.0001697,2]
[399969456,1766955048451,-200.0,0.0001697,2]
[399969457,1766955048461,-153.0,0.0001697,2]
[399969458,1766955048472,-153.0,0.0001697,2]
[399969459,1766955048482,-153.0,0.0001697,2]
[399969460,1766955048492,-153.0,0.0001697,2]
[399969461,1766955048501,-246.0,0.0001697,2]
[399969462,1766955048512,-153.0,0.0001697,2]
[399969463,1766955048522,-153.0,0.0001697,2]
[399969464,1766955048531,-153.0,0.0001697,2]
[399969465,1766955048540,-153.0,0.0001697,2]
[399969466,1766955048550,-153.0,0.0001697,2]
[399969467,1766955048560,-153.0,0.0001697,2]
[399969468,1766955048570,-153.0,0.0001697,2]
[399969469,1766955048580,-153.0,0.0001697,2]
[399969470,1766955048590,-153.0,0.0001697,2]
[399969471,1766955048600,-153.0,0.0001697,2]
[399969472,1766955048610,-153.0,0.0001697,2]
[399969473,1766955048620,-153.0,0.0001697,2]
[399969474,1766955048629,-150.11199507,0.00016973,2]
[399969475,1766955048638,-31952.41,0.00016986,2]
[399969476,1766955048648,-193.20504799,0.00016986,2]
[399969477,1766955048658,-261.52919059,0.00016986,2]
[399969478,1766955048668,-291.19227716,0.00016986,2]
[399969479,1766955048678,-266.31997745,0.00016986,2]
[399969480,1766955048688,-257.38593742,0.00016986,2]
[399969481,1766955048699,-288.29142727,0.00016986,2]
[399969482,1766955048708,-191.18737209,0.00016986,2]
[399969483,1766955048718,-159.10391865,0.00016986,2]
[399969484,1766955048728,-157.03567619,0.00016986,2]
[399969485,1766955048738,-156.10987043,0.00016986,2]
[399969486,1766955048748,-172.24524014,0.00016986,2]
[399969487,1766955048758,-273.23141721,0.00016986,2]
[399969488,1766955048768,-298.68946488,0.00016986,2]
[399969489,1766955048778,-1295.17,0.00016996,2]
[399969490,1766955048789,-613.0,0.00016997,2]
[399969491,1766955048799,-1330.846,0.00016997,2]
[399969492,1766955048810,-3460.0,0.00016997,2]
[399969493,1766955048820,-1610.0,0.00016997,2]
[399969494,1766955048830,-1264.0,0.00016997,2]
[399969495,1766955048839,-432.0,0.00016997,2]
[399969496,1766955048848,-564.0,0.00016997,2]
[399969497,1766955048858,-3699.345,0.00016997,2]
[399969498,1766955048870,-4810.0,0.00016997,2]
[399969499,1766955048880,-1067.95132778,0.00016999,5]
[399969500,1766955048890,-1067.95132778,0.00016999,5]
[399969501,1766955048899,-1067.95132778,0.00016999,5]
[399969502,1766955048909,-1067.95132778,0.00016999,5]
[399969503,1766955048925,-1067.95132778,0.00016999,5]
[399969504,1766955048945,-1067.95132777,0.00016999,5]
[399969505,1766955048960,-969.61981694,0.00016999,5]
[399969506,1766955048970,-300.0,0.00016999,2]
[399969507,1766955048979,-500.0,0.00016999,2]
[399969508,1766955048988,-500.0,0.00016999,2]
[399969509,1766955048999,-500.0,0.00016999,2]
[399969510,1766955049009,-464.2399143,0.00016999,2]
[399969511,1766955049019,-300.0,0.00016999,2]
[399969512,1766955049029,-300.0,0.00016999,2]
[399969513,1766955049039,-666.0,0.00016999,2]
[399969514,1766955049048,-300.0,0.00016999,2]
[399969515,1766955049059,-64778.45190276,0.00017,2]
[399969516,1766955049658,-255.80595542,0.00013847,2]
[399969517,1766955049695,-244.19404458,0.00013847,2]
[399969518,1766955049705,-413.05001382,0.00013874,2]
[399969519,1766955049718,-86.94998618,0.00013874,2]
[399969520,1766955049729,-186.15001382,0.00013891,2]
[399969521,1766955049741,-594.81817628,0.00013891,2]
[399969522,1766955049754,-845.30631861,0.00013891,2]
[399969523,1766955049793,-873.72549129,0.00013891,2]
[399969524,1766955049803,-500.0,0.00013902,2]
[399969525,1766955049813,-1246.6536218,0.00016232,2]
[399969526,1766955049826,-9457.28895401,0.00016232,2]
[399969527,1766955049836,-151.0,0.00016946,2]
[399969528,1766955049847,-151.0,0.00016946,2]
[399969529,1766955049857,-240.387728,0.00016946,2]
[399969530,1766955049870,-150.0,0.00016973,2]
[399969531,1766955049881,-150.0,0.00016973,2]
[399969532,1766955049891,-2431.0,0.00016997,2]
[399969533,1766955049902,-12269.32332399,0.00017,2]
[399969534,1766955166841,1067.95132778,0.0001379,5]
[399969535,1766955177821,1067.95132778,0.0001379,5]
[399969542,1766955215010,1018.78557236,0.0001379,5]
[399969546,1766955274063,1067.95132778,0.0001379,5]
[399969547,1766955287146,1067.95132778,0.0001379,5]
[399969548,1766955352810,-338.8957288,0.00013515,2]
[399969549,1766955508103,150.0,0.00013252,2]
[399969550,1766955647184,338.87,0.00013135,2]
[399969551,1766955724925,-1095.6372712,0.00013515,2]
[399969552,1766955724950,-176.665,0.00013515,2]
[399969553,1766955724974,-250.0,0.00013537,2]
[399969554,1766955724997,-368.07844489,0.00013558,2]
[399969555,1766955725020,-250.0,0.00013579,2]
[399969556,1766955725043,-368.07844487,0.00013671,2]
[399969557,1766955725066,-427.54083904,0.00013687,2]
[399969558,1766955888573,12855.68,0.0001314,2]
[399969559,1766955901684,1589.09,0.0001314,2]
[399969560,1766955930594,170.82,0.00013239,2]
[399969564,1766956232432,-484.30831452,0.00013526,2]
[399969565,1766956232442,-151.0,0.00013588,2]
[399969566,1766956232453,-151.0,0.00013588,2]
[399969567,1766956232462,-184.03922244,0.00013589,2]
[399969568,1766956232472,-1200.0,0.0001359,2]
[399969569,1766956232482,-300.0,0.0001359,2]
[399969570,1766956232492,-300.0,0.0001359,2]
[399969571,1766956232506,-185.23284668,0.0001359,2]
[399969572,1766956232516,-227779.03387762,0.00013591,2]
[399969573,1766956232529,-7360.81595252,0.00013591,2]
[399969574,1766956232540,-19828.93218712,0.00013591,2]
[399969575,1766956232551,-405.95789884,0.00013591,2]
[399969577,1766956232569,-10671.74692109,0.00013591,2]
[399969603,1766956237415,-484.00000004,0.0001359,2]
[399969604,1766956237427,-15.99999996,0.0001359,2]
[399969605,1766956237437,-459.67885934,0.0001359,2]
[399969606,1766956237473,-40.32114066,0.0001359,2]
[399969607,1766956237482,-559.97208091,0.0001359,2]
[399969608,1766956237492,-534.83547406,0.00013591,2]
[399969609,1766956237581,-2978.91,0.00013591,2]
[399969653,1766956239583,-1394.09216956,0.00013591,2]
[399969654,1766956239675,-729045.67551919,0.00013591,2]
[399969655,1766956239684,-300.0,0.00013626,2]
[399969656,1766956239695,-184.03922243,0.00013663,2]
[399969657,1766956239705,-165.16916096,0.00013687,2]
[399969658,1766956239715,-250.0,0.00013687,2]
[399969659,1766956239725,-1200.0,0.0001369,2]
[399969660,1766956239735,-150.0,0.0001369,2]
[399969661,1766956239746,-1182.8263,0.00013691,2]
[399969662,1766956239756,-31204.0717,0.00013691,2]
[399969663,1766956239766,-2500.0,0.00013691,2]
[399969664,1766956239775,-280.048538,0.00013691,2]
[399969665,1766956239785,-500.0,0.00013699,2]
[399969666,1766956239796,-323.07870325,0.00013699,2]
[399969667,1766956239805,-13782.6686223,0.00013763,2]
[399969668,1766956239815,-11017.15653627,0.00013763,2]
[399969669,1766956239825,-200.0,0.00013783,2]
[399969670,1766956239835,-500.0,0.00013783,2]
[399969671,1766956239845,-201.23401647,0.00013783,2]
[399969672,1766956239855,-200.0,0.00013783,2]
[399969673,1766956239864,-151.0,0.00013783,2]
[399969674,1766956239874,-151.0,0.00013783,2]
[399969675,1766956239884,-151.0,0.00013783,2]
[399969676,1766956239894,-151.0,0.00013783,2]
[399969677,1766956239904,-151.0,0.00013783,2]
[399969678,1766956239915,-151.0,0.00013783,2]
[399969679,1766956239924,-151.0,0.00013783,2]
[399969680,1766956239934,-151.0,0.00013783,2]
[399969681,1766956239944,-151.0,0.00013783,2]
[399969682,1766956239954,-151.0,0.00013783,2]
[399969683,1766956239963,-151.0,0.00013783,2]
[399969684,1766956239972,-151.0,0.00013783,2]
[399969685,1766956239982,-151.0,0.00013783,2]
[399969686,1766956239991,-151.0,0.00013783,2]
[399969687,1766956240217,-151.0,0.00013783,2]
[399969688,1766956240227,-151.0,0.00013783,2]
[399969689,1766956240236,-151.0,0.00013783,2]
[399969690,1766956240246,-151.0,0.00013783,2]
[399969691,1766956240256,-151.0,0.00013783,2]
[399969692,1766956240266,-151.0,0.00013783,2]
[399969693,1766956240278,-151.0,0.00013783,2]
[399969694,1766956240287,-151.0,0.00013783,2]
[399969695,1766956240297,-151.0,0.00013783,2]
[399969696,1766956240307,-153.70166196,0.00013783,2]
[399969697,1766956240316,-151.0,0.00013783,2]
[399969698,1766956240326,-151.0,0.00013783,2]
[399969699,1766956240335,-151.0,0.00013783,2]
[399969700,1766956240345,-151.0,0.00013783,2]
[399969701,1766956240355,-1605.99,0.00013783,2]
[399969702,1766956240365,-151.0,0.00013787,2]
[399969703,1766956240374,-500.0,0.00013788,2]
[399969704,1766956240384,-273.77153773,0.0001379,2]
[399969705,1766956240393,-500.0,0.0001379,2]
[399969706,1766956240403,-500.0,0.0001379,2]
[399969707,1766956240412,-500.0,0.0001379,2]
[399969708,1766956240421,-500.0,0.0001379,2]
[399969709,1766956240431,-500.0,0.0001379,2]
[399969710,1766956240440,-500.0,0.0001379,2]
[399969711,1766956240449,-500.0,0.0001379,2]
[399969712,1766956240458,-500.0,0.0001379,2]
[399969713,1766956240467,-500.0,0.0001379,2]
[399969714,1766956240476,-500.0,0.0001379,2]
[399969715,1766956240485,-500.0,0.0001379,2]
[399969716,1766956240494,-500.0,0.0001379,2]
[399969717,1766956240503,-500.0,0.0001379,2]
[399969718,1766956240513,-500.0,0.0001379,2]
[399969719,1766956240522,-500.0,0.0001379,2]
[399969720,1766956240533,-500.0,0.0001379,2]
[399969721,1766956240544,-500.0,0.0001379,2]
[399969722,1766956240554,-502.50439874,0.0001379,2]
[399969723,1766956240563,-500.0,0.0001379,2]
[399969724,1766956240572,-500.0,0.0001379,2]
[399969725,1766956240582,-523.47649377,0.0001379,2]
[399969726,1766956240591,-500.0,0.0001379,2]
[399969727,1766956240600,-500.0,0.0001379,2]
[399969728,1766956240609,-500.0,0.0001379,2]
[399969729,1766956240618,-621.72362606,0.0001379,2]
[399969730,1766956240629,-509.65734169,0.0001379,2]
[399969731,1766956240639,-500.0,0.0001379,2]
[399969732,1766956240649,-500.0,0.0001379,2]
[399969733,1766956240659,-552.54951057,0.0001379,2]
[399969734,1766956240670,-500.0,0.0001379,2]
[399969735,1766956240680,-500.0,0.0001379,2]
[399969736,1766956240690,-500.0,0.0001379,2]
[399969737,1766956240699,-526.32491477,0.0001379,2]
[399969738,1766956240708,-500.0,0.0001379,2]
[399969739,1766956240717,-306.29015372,0.0001379,2]
[399969740,1766956240726,-500.0,0.0001379,2]
[399969741,1766956240736,-500.0,0.0001379,2]
[399969742,1766956240745,-500.0,0.0001379,2]
[399969743,1766956240754,-500.0,0.0001379,2]
[399969744,1766956240765,-500.0,0.0001379,2]
[399969745,1766956240774,-649.44280484,0.0001379,2]
[399969746,1766956240784,-500.0,0.0001379,2]
[399969747,1766956240794,-500.0,0.0001379,2]
[399969748,1766956240803,-500.0,0.0001379,2]
[399969749,1766956240813,-500.0,0.0001379,2]
[399969750,1766956240822,-562.55426662,0.0001379,2]
[399969751,1766956240832,-500.0,0.0001379,2]
[399969752,1766956240842,-500.0,0.0001379,2]
[399969753,1766956240850,-500.0,0.0001379,2]
[399969754,1766956240860,-500.0,0.0001379,2]
[399969755,1766956240870,-173.02989345,0.00013791,2]
[399969756,1766956240881,-178.125,0.00013791,2]
[399969757,1766956240890,-1813.631,0.00013791,2]
[399969758,1766956240900,-4475.0495,0.00013863,2]
[399969759,1766956240911,-33520.8529,0.00013891,2]
[399969760,1766956240921,-1000.0,0.00013891,2]
[399969761,1766956240930,-484.3083145,0.00014008,2]
[399969762,1766956240939,-1605.99,0.00014057,2]
[399969763,1766956240949,-500.0,0.00014062,2]
[399969764,1766956240958,-501.94875772,0.00014092,2]
[399969765,1766956240967,-500.0,0.00014092,2]
[399969766,1766956240976,-500.0,0.00014092,2]
[399969767,1766956240985,-500.0,0.00014092,2]
[399969768,1766956240994,-500.0,0.00014092,2]
[399969769,1766956241003,-500.0,0.00014092,2]
[399969770,1766956241012,-500.0,0.00014092,2]
[399969771,1766956241022,-500.0,0.00014092,2]
[399969772,1766956241031,-500.0,0.00014092,2]
[399969773,1766956241040,-500.0,0.00014092,2]
[399969774,1766956241049,-500.0,0.00014092,2]
[399969775,1766956241058,-500.0,0.00014092,2]
[399969776,1766956241067,-562.40576989,0.00014092,2]
[399969777,1766956241076,-192.43582029,0.00014102,2]
[399969778,1766956241085,-13782.6686223,0.00014112,2]
[399969779,1766956241094,-11017.15653623,0.00014112,2]
[399969780,1766956241103,-200.0,0.00014331,2]
[399969781,1766956241112,-504.00666552,0.00014331,2]
[399969782,1766956241122,-1605.99,0.00014331,2]
[399969783,1766956241131,-500.0,0.00014336,2]
[399969784,1766956241141,-13782.6686223,0.0001446,2]
[399969785,1766956241150,-11017.15653623,0.0001446,2]
[399969786,1766956241159,-484.3083145,0.0001449,2]
[399969787,1766956241168,-500.0,0.00014573,2]
[399969788,1766956241177,-536.24942027,0.00014573,2]
[399969789,1766956241186,-500.0,0.00014573,2]
[399969790,1766956241196,-500.0,0.00014573,2]
[399969791,1766956241205,-500.51324187,0.00014573,2]
[399969792,1766956241214,-500.0,0.00014573,2]
[399969793,1766956241223,-500.0,0.00014573,2]
[399969794,1766956241232,-174.92808548,0.00014573,2]
[399969795,1766956241241,-538.18007522,0.00014573,2]
[399969796,1766956241250,-165.07212519,0.00014573,2]
[399969797,1766956241259,-500.0,0.00014573,2]
[399969798,1766956241272,-500.0,0.00014573,2]
[399969799,1766956241281,-500.0,0.00014573,2]
[399969800,1766956241290,-157.13520198,0.00014573,2]
[399969801,1766956241299,-500.14010989,0.00014573,2]
[399969802,1766956241309,-500.0,0.00014573,2]
[399969803,1766956241319,-500.0,0.00014573,2]
[399969804,1766956241327,-500.0,0.00014573,2]
[399969805,1766956241336,-500.0,0.00014573,2]
[399969806,1766956241345,-162.19608931,0.00014573,2]
[399969807,1766956241354,-500.5153804,0.00014573,2]
[399969808,1766956241363,-165.96450787,0.00014573,2]
[399969809,1766956241373,-305.00383529,0.00014573,2]
[399969810,1766956241382,-500.0,0.00014573,2]
[399969811,1766956241391,-500.0,0.00014573,2]
[399969812,1766956241400,-168.76953006,0.00014573,2]
[399969813,1766956241409,-484.98892147,0.00014573,2]
[399969814,1766956241418,-500.0,0.00014573,2]
[399969815,1766956241427,-500.0,0.00014573,2]
[399969816,1766956241436,-500.0,0.00014573,2]
[399969817,1766956241445,-500.0,0.00014573,2]
[399969818,1766956241454,-500.0,0.00014573,2]
[399969819,1766956241463,-500.0,0.00014573,2]
[399969820,1766956241472,-500.0,0.00014573,2]
[399969821,1766956241480,-500.0,0.00014573,2]
[399969822,1766956241489,-224.28186878,0.00014573,2]
[399969823,1766956241498,-500.0,0.00014573,2]
[399969824,1766956241507,-437.57390351,0.00014573,2]
[399969825,1766956241516,-163.02384966,0.00014573,2]
[399969826,1766956241525,-500.0,0.00014573,2]
[399969827,1766956241534,-500.0,0.00014573,2]
[399969828,1766956241543,-235.96212979,0.00014573,2]
[399969829,1766956241552,-500.0,0.00014573,2]
[399969830,1766956241561,-178.0,0.00014593,2]
[399969831,1766956241569,-1605.99,0.00014605,2]
[399969832,1766956241579,-500.0,0.0001461,2]
[399969833,1766956241588,-1455.08236601,0.00014683,2]
[399969834,1766956241597,-13782.6686223,0.00014809,2]
[399969835,1766956241606,-11017.15653623,0.00014809,2]
[399969836,1766956241615,-255.0,0.00014813,2]
[399969837,1766956241624,-173.02989345,0.00014827,2]
[399969838,1766956241633,-200.0,0.00014879,2]
[399969839,1766956241642,-1605.99,0.00014879,2]
[399969840,1766956241652,-500.0,0.00014884,2]
[399969841,1766956241661,-420.0,0.00014895,2]
[399969842,1766956241670,-420.0,0.00014895,2]
[399969843,1766956241679,-195.0,0.00014948,2]
[399969844,1766956241688,-600.0,0.00014948,2]
[399969845,1766956241698,-600.0,0.00014948,2]
[399969846,1766956241707,-600.0,0.00014948,2]
[399969847,1766956241716,-600.0,0.00014948,2]
[399969848,1766956241725,-163.03184917,0.00014948,2]
[399969849,1766956241734,-193.0,0.00014948,2]
[399969850,1766956241743,-300.0,0.00014948,2]
[399969851,1766956241753,-300.0,0.00014948,2]
[399969852,1766956241763,-300.0,0.00014948,2]
[399969853,1766956241775,-300.0,0.00014948,2]
[399969854,1766956241784,-198.31759794,0.00014948,2]
[399969855,1766956241793,-2500.0,0.00014948,2]
[399969856,1766956241802,-195.0,0.00014948,2]
[399969857,1766956241811,-195.0,0.00014949,2]
[399969858,1766956241819,-300.0,0.00014949,2]
[399969859,1766956241828,-250.0,0.00014949,2]
[399969860,1766956241838,-195.0,0.00014949,2]
[399969861,1766956241847,-1680.0,0.00014949,2]
[399969862,1766956241855,-484.3083145,0.00014972,2]
[399969863,1766956241864,-500.0,0.00014999,2]
[399969864,1766956241874,-17610.0,0.00015,2]
[399969865,1766956241883,-1200.0,0.00015003,2]
[399969866,1766956241892,-151.0,0.00015039,2]
[399969867,1766956241901,-151.0,0.00015049,2]
[399969868,1766956241910,-151.0,0.00015049,2]
[399969869,1766956241919,-250.0,0.00015055,2]
[399969870,1766956241928,-1099.98058356,0.00015121,2]
[399969871,1766956241936,-1000.0,0.00015121,2]
[399969872,1766956241945,-1000.0,0.00015121,2]
[399969873,1766956241954,-1000.0,0.00015121,2]
[399969874,1766956241963,-1000.85459949,0.00015121,2]
[399969875,1766956241971,-1000.0,0.00015121,2]
[399969876,1766956241980,-825.46719088,0.00015121,2]
[399969877,1766956241989,-500.81919324,0.00015121,2]
[399969878,1766956241998,-1000.0,0.00015121,2]
[399969879,1766956242007,-1000.0,0.00015121,2]
[399969880,1766956242015,-1000.51013306,0.00015121,2]
[399969881,1766956242024,-367.26456673,0.00015121,2]
[399969882,1766956242033,-645.49615289,0.00015121,2]
[399969883,1766956242041,-1000.0,0.00015121,2]
[399969884,1766956242050,-1000.0,0.00015121,2]
[399969885,1766956242059,-1000.0,0.00015121,2]
[399969886,1766956242067,-1000.0,0.00015121,2]
[399969887,1766956242076,-1000.0,0.00015121,2]
[399969888,1766956242085,-1000.0,0.00015121,2]
[399969889,1766956242095,-632.38992075,0.00015121,2]
[399969891,1766956242104,-1000.0,0.00015121,2]
[399969893,1766956242112,-500.0,0.00015121,2]
[399969895,1766956242121,-1000.0,0.00015121,2]
[399969897,1766956242130,-1000.0,0.00015121,2]
[399969899,1766956242139,-1605.99,0.00015153,2]
[399969901,1766956242148,-13782.6686223,0.00015157,2]
[399969904,1766956242157,-11017.15653623,0.00015157,2]
[399969905,1766956242166,-500.0,0.00015158,2]
[399969906,1766956242175,-500.0,0.00015167,2]
[399969908,1766956242184,-483.08577501,0.00015167,2]
[399969910,1766956242194,-500.0,0.00015167,2]
[399969911,1766956242203,-455.06899995,0.00015167,2]
[399969912,1766956242213,-150.0,0.00015288,2]
[399969913,1766956242223,-150.0,0.00015288,2]
[399969914,1766956242234,-150.0,0.00015288,2]
[399969915,1766956242244,-298.69511274,0.00015288,2]
[399969916,1766956242255,-150.0,0.00015288,2]
[399969917,1766956242266,-150.0,0.00015288,2]
[399969918,1766956242277,-150.0,0.00015288,2]
[399969919,1766956242286,-150.0,0.00015288,2]
[399969920,1766956242295,-150.0,0.00015288,2]
[399969921,1766956242307,-150.0,0.00015288,2]
[399969922,1766956242316,-150.0,0.00015288,2]
[399969923,1766956242326,-150.0,0.00015288,2]
[399969924,1766956242335,-150.0,0.00015288,2]
[399969925,1766956242346,-150.0,0.00015288,2]
[399969926,1766956242356,-150.0,0.00015288,2]
[399969927,1766956242365,-150.0,0.00015315,2]
[399969928,1766956242375,-150.0,0.00015325,2]
[399969929,1766956242384,-150.0,0.00015336,2]
[399969930,1766956242394,-150.0,0.00015339,2]
[399969931,1766956242403,-150.0,0.00015341,2]
[399969932,1766956242412,-150.0,0.00015342,2]
[399969933,1766956242420,-150.0,0.00015362,2]
[399969934,1766956242429,-150.0,0.00015362,2]
[399969935,1766956242438,-150.0,0.00015369,2]
[399969936,1766956242447,-150.0,0.0001537,2]
[399969937,1766956242457,-150.0,0.00015385,2]
[399969938,1766956242470,-150.0,0.00015391,2]
[399969939,1766956242488,-150.0,0.00015394,2]
[399969940,1766956242506,-150.0,0.00015397,2]
[399969941,1766956242525,-150.0,0.00015398,2]
[399969942,1766956242536,-150.0,0.00015401,2]
[399969943,1766956242546,-150.0,0.00015425,2]
[399969944,1766956242556,-200.0,0.00015427,2]
[399969945,1766956242565,-1605.99,0.00015427,2]
[399969946,1766956242575,-500.0,0.00015432,2]
[399969947,1766956242585,-150.0,0.00015433,2]
[399969948,1766956242594,-150.0,0.00015435,2]
[399969949,1766956242603,-150.0,0.00015435,2]
[399969950,1766956242612,-150.0,0.00015442,2]
[399969951,1766956242621,-150.0,0.00015442,2]
[399969952,1766956242630,-150.0,0.00015447,2]
[399969953,1766956242640,-150.0,0.00015449,2]
[399969954,1766956242649,-150.0,0.00015452,2]
[399969955,1766956242658,-484.3083145,0.00015454,2]
[399969956,1766956242669,-150.0,0.00015458,2]
[399969957,1766956242679,-150.0,0.00015472,2]
[399969958,1766956242688,-150.0,0.00015479,2]
[399969959,1766956242697,-10027.13268045,0.0001548,2]
[399969960,1766956242706,-150.0,0.00015482,2]
[399969961,1766956242715,-150.0,0.00015494,2]
[399969962,1766956242724,-150.0,0.000155,2]
[399969963,1766956242733,-150.0,0.000155,2]
[399969964,1766956242743,-5527.0,0.000155,3]
[399969965,1766956242752,-13782.6686223,0.00015506,2]
[399969966,1766956242761,-11017.15653623,0.00015506,2]
[399969967,1766956242770,-150.0,0.00015507,2]
[399969968,1766956242779,-150.0,0.00015509,2]
[399969969,1766956242789,-150.0,0.00015509,2]
[399969970,1766956242798,-150.0,0.00015514,2]
[399969971,1766956242807,-150.0,0.0001553,2]
[399969972,1766956242817,-150.0,0.0001553,2]
[399969973,1766956242827,-150.0,0.00015534,2]
[399969974,1766956242837,-150.0,0.00015545,2]
[399969975,1766956242846,-150.0,0.00015546,2]
[399969976,1766956242855,-150.0,0.00015553,2]
[399969977,1766956242864,-150.0,0.00015562,2]
[399969978,1766956242874,-150.0,0.00015579,2]
[399969979,1766956242883,-150.0,0.00015583,2]
[399969980,1766956242893,-150.0,0.00015583,2]
[399969981,1766956242902,-150.0,0.00015589,2]
[399969982,1766956242911,-150.0,0.00015597,2]
[399969983,1766956242921,-150.0,0.00015597,2]
[399969984,1766956242930,-150.0,0.00015606,2]
[399969985,1766956242940,-150.0,0.00015611,2]
[399969986,1766956242949,-150.0,0.00015616,2]
[399969987,1766956242958,-150.0,0.0001562,2]
[399969988,1766956242967,-150.0,0.00015627,2]
[399969989,1766956242976,-150.0,0.00015627,2]
[399969990,1766956242986,-150.0,0.00015627,2]
[399969991,1766956242995,-150.0,0.00015644,2]
[399969992,1766956243003,-150.0,0.00015648,2]
[399969993,1766956243012,-150.0,0.00015657,2]
[399969994,1766956243023,-150.0,0.00015657,2]
[399969995,1766956243033,-150.0,0.00015659,2]
[399969996,1766956243043,-941.4218678,0.00015668,2]
[399969997,1766956243052,-1500.0,0.00015668,2]
[399969998,1766956243061,-169.53966379,0.00015668,2]
[399969999,1766956243072,-1500.0,0.00015668,2]
[399970000,1766956243083,-1500.0,0.00015668,2]
[399970001,1766956243093,-501.70391837,0.00015668,2]
[399970002,1766956243104,-1500.0,0.00015668,2]
[399970003,1766956243114,-1007.4808143,0.00015668,2]
[399970004,1766956243123,-1074.4149174,0.00015668,2]
[399970005,1766956243133,-1500.0,0.00015668,2]
[399970007,1766956243142,-1254.67001786,0.00015668,2]
[399970008,1766956243150,-1500.0,0.00015668,2]
[399970009,1766956243159,-1500.0,0.00015668,2]
[399970010,1766956243169,-634.28770415,0.00015668,2]
[399970012,1766956243179,-1500.0,0.00015668,2]
[399970014,1766956243187,-150.0,0.00015671,2]
[399970016,1766956243196,-150.0,0.00015676,2]
[399970017,1766956243205,-150.0,0.00015692,2]
[399970019,1766956243215,-150.0,0.00015694,2]
[399970021,1766956243224,-150.0,0.00015699,2]
[399970023,1766956243233,-150.0,0.00015699,2]
[399970025,1766956243243,-1605.99,0.00015701,2]
[399970027,1766956243252,-500.0,0.00015706,2]
[399970028,1766956243262,-150.0,0.00015712,2]
[399970029,1766956243274,-150.0,0.00015712,2]
[399970030,1766956243284,-150.0,0.00015724,2]